{"text_format":"1","workbook":"xlsx","n_sheets":4,"sheets":["Dataset","Filter","Column_VBA","Rows_VBA"],"not_rendered":{"charts":0,"images":0,"macros":1,"external_links":0,"defined_names":3,"comments":0,"pivot_tables":0},"unopened":[],"bounds":{"document_bytes":16777216,"sheet_cells":100000,"rows_first":2000,"rows_last":500,"rows_between":2000,"halvings":0,"cell_chars":16384,"cell_head_chars":4096},"cells_cut":0,"cells_raw":0,"read":"whole","date_system":"1900"}

{"sheet":"Dataset","index":0,"n_rows":14,"n_cols":3,"rows_kept":14,"cut":false,"hidden":false,"merged":[[1,1,1,2]]}
[]
[null,"Filter Multiple Columns by Color"]
[]
[null,"Name","City"]
[null,"Alan","Phoenix"]
[null,"Jim","Seattle"]
[null,"Alex","Boston"]
[null,"June","Denver"]
[null,"Adelle","Phoenix"]
[null,"Jennifer","Portland"]
[null,"Michel","Omaha"]
[null,"Jerry","Portland"]
[null,"Antonio","Austin"]
[null,"Miller","Boston"]

{"sheet":"Filter","index":1,"n_rows":14,"n_cols":3,"rows_kept":14,"cut":false,"hidden":false,"merged":[[1,1,1,2]]}
[]
[null,"Use of Only Filter Feature"]
[]
[null,"Name","City"]
[null,"Alan","Phoenix"]
[null,"Jim","Seattle"]
[null,"Alex","Boston"]
[null,"June","Denver"]
[null,"Adelle","Phoenix"]
[null,"Jennifer","Portland"]
[null,"Michel","Omaha"]
[null,"Jerry","Portland"]
[null,"Antonio","Austin"]
[null,"Miller","Boston"]

{"sheet":"Column_VBA","index":2,"n_rows":14,"n_cols":5,"rows_kept":14,"cut":false,"hidden":false,"merged":[[1,1,1,4]]}
[]
[null,"Use of VBA"]
[]
[null,"Name","City","Color Index (Name)","Color Index (City)"]
[null,"Alan","Phoenix",{"$f":"FindColor(B5)","v":15},{"$f":"FindColor(C5)","v":24}]
[null,"Jim","Seattle",{"$f":"FindColor(B6)","v":19},{"$f":"FindColor(C6)","v":19}]
[null,"Alex","Boston",{"$f":"FindColor(B7)","v":15},{"$f":"FindColor(C7)","v":23}]
[null,"June","Denver",{"$f":"FindColor(B8)","v":19},{"$f":"FindColor(C8)","v":40}]
[null,"Adelle","Phoenix",{"$f":"FindColor(B9)","v":15},{"$f":"FindColor(C9)","v":24}]
[null,"Jennifer","Portland",{"$f":"FindColor(B10)","v":19},{"$f":"FindColor(C10)","v":36}]
[null,"Michel","Omaha",{"$f":"FindColor(B11)","v":24},{"$f":"FindColor(C11)","v":15}]
[null,"Jerry","Portland",{"$f":"FindColor(B12)","v":19},{"$f":"FindColor(C12)","v":36}]
[null,"Antonio","Boston",{"$f":"FindColor(B13)","v":15},{"$f":"FindColor(C13)","v":23}]
[null,"Miller","Austin",{"$f":"FindColor(B14)","v":24},{"$f":"FindColor(C14)","v":40}]

{"sheet":"Rows_VBA","index":3,"n_rows":14,"n_cols":4,"rows_kept":14,"cut":false,"hidden":false,"merged":[[1,1,1,3]]}
[]
[null,"Use of VBA (Filter by Multiple Colors)"]
[]
[null,"Name","City","Color Index"]
[null,"Alan","Phoenix",{"$f":"FindColor(B5)","v":24}]
[null,"Jim","Seattle",{"$f":"FindColor(B6)","v":24}]
[null,"Alex","Boston",{"$f":"FindColor(B7)","v":-4142}]
[null,"June","Denver",{"$f":"FindColor(B8)","v":40}]
[null,"Adelle","Phoenix",{"$f":"FindColor(B9)","v":15}]
[null,"Jennifer","Portland",{"$f":"FindColor(B10)","v":15}]
[null,"Michel","Omaha",{"$f":"FindColor(B11)","v":40}]
[null,"Jerry","Portland",{"$f":"FindColor(B12)","v":15}]
[null,"Antonio","Boston",{"$f":"FindColor(B13)","v":19}]
[null,"Miller","Austin",{"$f":"FindColor(B14)","v":19}]